[Event "BL 2018-19"]
[Site "Berlin"]
[Date "2019.03.01"]
[Round "9.27"]
[White "Postny, Evgeny"]
[Black "Hertneck, Gerald"]
[Result "1/2-1/2"]
[ECO "E11"]
[WhiteElo "2617"]
[BlackElo "2492"]
[Annotator "ChessBase"]
[PlyCount "86"]
[EventDate "2018.11.10"]
[EventType "team-tourn"]
[EventCountry "GER"]
[SourceTitle "playchess.com"]
[Source "ChessBase"]
[SourceQuality "1"]
[WhiteTeam "Augsburg"]
[BlackTeam "Zugzwang Muenchen"]
[TimeControl "40/6000+30:3000+30"]

1. d4 {[%emt 0:00:00]} Nf6 {[%emt 0:00:00]} 2. c4 {[%emt 0:00:00]} e6 {[%emt 0:00:02]} 3. Nf3 {[%emt 0:00:00]} Bb4+ {[%emt 0:00:08]} 4. Nbd2 {[%emt 0:00:20]} d5 {[%emt 0:01:14]} 5. Qa4+ {[%emt 0:03:40]} Nc6 {[%emt 0:00:51]} 6. e3 {[%emt 0:00:29]} O-O {[%emt 0:00:41]} 7. a3 {[%emt 0:04:28]} Bxd2+ {[%emt 0:01:36]} 8. Bxd2 {[%emt 0:02:00]} Ne4 {[%emt 0:00:08]} 9. Qc2 {[%emt 0:04:06]} Nxd2 {[%emt 0:00:59]} 10. Qxd2 {[%emt 0:00:39]} b6 {[%emt 0:04:50]} 11. b4 {[%emt 0:07:40]} Ne7 {[%emt 0:01:22]} 12. cxd5 {[%emt 0:03:54]} Nxd5 {[%emt 0:01:50]} 13. Be2 {[%emt 0:08:52]} Bb7 {[%emt 0:00:42]} 14. O-O {[%emt 0:00:10]} Qe7 {[%emt 0:00:35]} 15. Rfc1 {[%emt 0:02:16]} Rfc8 {[%emt 0:00:26]} 16. Rab1 {[%emt 0:12:10]} Nf6 {[%emt 0:05:06]} 17. Ne5 {[%emt 0:07:39]} c5 {[%emt 0:22:39]} 18. dxc5 {[%emt 0:03:38]} bxc5 {[%emt 0:00:08]} 19. b5 {[%emt 0:08:22]} Rd8 {[%emt 0:01:01]} 20. Qe1 {[%emt 0:04:27]} Rac8 {[%emt 0:03:47]} 21. a4 {[%emt 0:01:41]} Ne4 {[%emt 0:01:56]} 22. Nc4 {[%emt 0:02:12]} Bd5 {[%emt 0:01:19]} 23. Rc2 {[%emt 0:10:31]} Nd6 {[%emt 0:03:55]} 24. Rbc1 {[%emt 0:03:16]} Qg5 {[%emt 0:01:46]} 25. Qf1 {[%emt 0:01:53]} Nxc4 {[%emt 0:02:32]} 26. Bxc4 {[%emt 0:00:11]} Bxc4 {[%emt 0:01:00]} 27. Rxc4 {[%emt 0:05:36]} Rd2 {[%emt 0:00:52]} 28. Qe1 {[%emt 0:01:35]} Qd8 {[%emt 0:02:01]} 29. h3 {[%emt 0:03:09]} h6 {[%emt 0:03:24]} 30. Qf1 {[%emt 0:01:02]} Rc7 {[%emt 0:05:11]} 31. R4c2 {[%emt 0:01:15]} Rxc2 {[%emt 0:01:41]} 32. Rxc2 {[%emt 0:00:05]} Rd7 {[%emt 0:00:07]} 33. Qc4 {[%emt 0:02:42]} Rd1+ {[%emt 0:00:20]} 34. Kh2 {[%emt 0:00:05]} Qd6+ {[%emt 0:00:07]} 35. g3 {[%emt 0:02:09]} Qe5 {[%emt 0:02:27]} 36. Qe2 {[%emt 0:03:58]} Qd5 {[%emt 0:08:07]} 37. e4 {[%emt 0:00:19]} Qd4 {[%emt 0:00:06]} 38. Kg2 {[%emt 0:01:38]} Qa1 {[%emt 0:00:56]} 39. Rxc5 {[%emt 0:00:40]} Rg1+ {[%emt 0:00:10]} 40. Kh2 {[%emt 0:00:12]} Rh1+ {[%emt 0:02:09]} 41. Kg2 {[%emt 0:50:04]} Rg1+ {[%emt 0:56:27]} 42. Kh2 {[%emt 0:00:26]} Rh1+ {[%emt 0:02:12]} 43. Kg2 {[%emt 0:00:05]} Rg1+ {[%emt 0:01:37]} 1/2-1/2

[Event "BL 2018-19"]
[Site "Berlin"]
[Date "2019.03.01"]
[Round "9.29"]
[White "Arnaudov, G. Petar"]
[Black "Gerigk, Erasmus"]
[Result "1-0"]
[ECO "E20"]
[WhiteElo "2459"]
[BlackElo "2355"]
[Annotator "ChessBase"]
[PlyCount "143"]
[EventDate "2018.11.10"]
[EventType "team-tourn"]
[EventCountry "GER"]
[SourceTitle "playchess.com"]
[Source "ChessBase"]
[SourceQuality "1"]
[WhiteTeam "Augsburg"]
[BlackTeam "Zugzwang Muenchen"]
[TimeControl "40/6000+30:3000+30"]

1. d4 {[%emt 0:00:00]} Nf6 {[%emt 0:00:00]} 2. c4 {[%emt 0:00:00]} e6 3. Nc3 {[%emt 0:00:13]} Bb4 {[%emt 0:00:00]} 4. g3 {[%emt 0:00:11]} O-O 5. Bg2 {[%emt 0:02:30]} d5 {[%emt 0:03:35]} 6. Nf3 dxc4 {[%emt 0:06:00]} 7. O-O {[%emt 0:01:28]} Nc6 {[%emt 0:02:11]} 8. Qa4 Rb8 {[%emt 0:12:19]} 9. Qb5 {[%emt 0:03:42]} Bxc3 {[%emt 0:04:00]} 10. bxc3 {[%emt 0:01:22]} Qd5 {[%emt 0:00:38]} 11. a4 {[%emt 0:00:05]} a6 {[%emt 0:01:57]} 12. Qb2 {[%emt 0:00:05]} Qh5 {[%emt 0:03:55]} 13. Nd2 {[%emt 0:13:28]} Na5 {[%emt 0:15:53]} 14. e4 {[%emt 0:28:10]} b5 15. Qc2 {[%emt 0:02:44]} Nc6 {[%emt 0:19:53]} 16. axb5 {[%emt 0:05:49]} axb5 {[%emt 0:00:19]} 17. f4 Qe2 {[%emt 0:11:18]} 18. Bf3 {[%emt 0:07:20]} Qd3 19. Qxd3 {[%emt 0:00:38]} cxd3 {[%emt 0:00:36]} 20. Nb3 Nd7 {[%emt 0:05:48]} 21. d5 {[%emt 0:03:10]} Nd8 {[%emt 0:04:03]} 22. Ba3 {[%emt 0:02:31]} Re8 {[%emt 0:00:09]} 23. d6 cxd6 {[%emt 0:02:29]} 24. Bxd6 {[%emt 0:00:45]} Rb6 {[%emt 0:00:42]} 25. e5 {[%emt 0:00:20]} Ra6 {[%emt 0:03:19]} 26. Rad1 {[%emt 0:03:47]} Bb7 {[%emt 0:00:50]} 27. Rxd3 {[%emt 0:00:33]} Bxf3 {[%emt 0:00:22]} 28. Rfxf3 {[%emt 0:00:04]} Nb7 {[%emt 0:01:19]} 29. Bb4 {[%emt 0:00:44]} Nb6 {[%emt 0:02:00]} 30. Nd4 {[%emt 0:00:13]} Nd5 {[%emt 0:02:23]} 31. Nxb5 {[%emt 0:00:20]} Nxb4 {[%emt 0:01:05]} 32. cxb4 {[%emt 0:00:12]} Rb6 {[%emt 0:00:48]} 33. Nc7 Rc8 34. Rc3 {[%emt 0:10:27]} Rxb4 {[%emt 0:01:24]} 35. Rfd3 {[%emt 0:00:30]} h5 36. Kg2 {[%emt 0:00:47]} Rd8 {[%emt 0:03:36]} 37. Rxd8+ {[%emt 0:01:29]} Nxd8 {[%emt 0:00:03]} 38. Ne8 {[%emt 0:00:25]} Nb7 {[%emt 0:04:29]} 39. Rc8 {[%emt 0:03:03]} Kh7 {[%emt 0:00:09]} 40. Kf3 {[%emt 0:01:06]} Kg6 {[%emt 0:00:29]} 41. Rc7 {[%emt 0:00:00]} Rb3+ {[%emt 0:12:51]} 42. Ke4 Rb4+ {[%emt 0:02:57]} 43. Kd3 {[%emt 0:00:27]} Rb1 {[%emt 0:00:32]} 44. Ke3 Re1+ {[%emt 0:08:20]} 45. Kf3 {[%emt 0:05:57]} Rb1 {[%emt 0:00:22]} 46. Kg2 {[%emt 0:00:06]} Rb3 {[%emt 0:01:54]} 47. Kh3 {[%emt 0:00:15]} Rb2 {[%emt 0:01:43]} 48. g4 {[%emt 0:03:27]} hxg4+ {[%emt 0:06:51]} 49. Kxg4 {[%emt 0:00:06]} Rb1 {[%emt 0:00:39]} 50. h4 {[%emt 0:01:38]} Rg1+ {[%emt 0:00:09]} 51. Kf3 {[%emt 0:00:07]} Rf1+ {[%emt 0:00:49]} 52. Kg3 {[%emt 0:00:22]} Rg1+ {[%emt 0:00:33]} 53. Kf2 {[%emt 0:00:25]} Rb1 {[%emt 0:00:12]} 54. Ke2 {[%emt 0:01:08]} Rb3 {[%emt 0:01:57]} 55. Kf2 {[%emt 0:00:47]} Rb1 {[%emt 0:00:10]} 56. h5+ {[%emt 0:00:51]} Kxh5 {[%emt 0:00:38]} 57. Rxf7 {[%emt 0:02:46]} g5 {[%emt 0:07:22]} 58. f5 {[%emt 0:03:23]} exf5 {[%emt 0:06:11]} 59. e6 {[%emt 0:03:04]} f4 60. e7 Rb2+ {[%emt 0:01:28]} 61. Ke1 {[%emt 0:01:30]} Rb1+ 62. Kd2 {[%emt 0:03:40]} Rb2+ {[%emt 0:02:38]} 63. Kd3 {[%emt 0:04:01]} Rb3+ {[%emt 0:00:26]} 64. Ke4 Kg6 {[%emt 0:01:20]} 65. Rf6+ {[%emt 0:02:33]} Kh7 66. Kf5 {[%emt 0:01:14]} Rb5+ {[%emt 0:01:37]} 67. Ke6 {[%emt 0:02:28]} Nc5+ {[%emt 0:00:42]} 68. Kf7 {[%emt 0:00:24]} Nd7 69. Rd6 Ne5+ {[%emt 0:02:31]} 70. Ke6 {[%emt 0:02:57]} Ng4 71. Nf6+ {[%emt 0:00:57]} Kg7 {[%emt 0:01:12]} 72. Nxg4 {[%emt 0:00:23]} 1-0

[Event "BL 2018-19"]
[Site "Berlin"]
[Date "2019.03.01"]
[Round "9.31"]
[White "Nestorovic, Nikola"]
[Black "Eichler, Christoph"]
[Result "1-0"]
[ECO "B36"]
[WhiteElo "2455"]
[BlackElo "2315"]
[Annotator "ChessBase"]
[PlyCount "109"]
[EventDate "2018.11.10"]
[EventType "team-tourn"]
[EventCountry "GER"]
[SourceTitle "playchess.com"]
[Source "ChessBase"]
[SourceQuality "1"]
[WhiteTeam "Augsburg"]
[BlackTeam "Zugzwang Muenchen"]
[TimeControl "40/6000+30:3000+30"]

1. e4 {[%emt 0:00:00]} c5 {[%emt 0:00:00]} 2. Nf3 {[%emt 0:00:00]} Nc6 {[%emt 0:00:00]} 3. d4 {[%emt 0:00:02]} cxd4 {[%emt 0:00:00]} 4. Nxd4 {[%emt 0:00:04]} g6 {[%emt 0:00:03]} 5. c4 {[%emt 0:00:05]} Nf6 {[%emt 0:00:18]} 6. Nc3 {[%emt 0:00:06]} Nxd4 {[%emt 0:00:07]} 7. Qxd4 {[%emt 0:00:05]} d6 {[%emt 0:00:06]} 8. Be3 {[%emt 0:00:31]} Bg7 {[%emt 0:00:09]} 9. Be2 {[%emt 0:00:55]} O-O {[%emt 0:00:12]} 10. Qd2 {[%emt 0:00:06]} Be6 {[%emt 0:01:14]} 11. Rc1 {[%emt 0:04:51]} Qa5 {[%emt 0:02:14]} 12. O-O {[%emt 0:00:23]} Rfc8 {[%emt 0:00:36]} 13. b3 {[%emt 0:00:05]} a6 {[%emt 0:01:37]} 14. Bf3 {[%emt 0:00:04]} Rab8 {[%emt 0:10:54]} 15. Ba7 {[%emt 0:00:07]} Ra8 {[%emt 0:00:07]} 16. Bd4 {[%emt 0:00:27]} Rab8 {[%emt 0:03:49]} 17. Qe3 {[%emt 0:10:35]} Nd7 {[%emt 0:14:17]} 18. Bxg7 {[%emt 0:32:12]} Kxg7 {[%emt 0:01:37]} 19. Nd5 {[%emt 0:00:56]} Re8 {[%emt 0:14:29]} 20. b4 {[%emt 0:05:00]} Qd8 {[%emt 0:02:12]} 21. Nf4 {[%emt 0:08:05]} Nf8 {[%emt 0:07:49]} 22. Rfd1 {[%emt 0:06:50]} Qc7 {[%emt 0:05:38]} 23. h4 {[%emt 0:12:26]} f6 {[%emt 0:05:52]} 24. c5 {[%emt 0:05:01]} dxc5 {[%emt 0:01:52]} 25. Rxc5 {[%emt 0:02:34]} Qb6 {[%emt 0:00:15]} 26. a3 {[%emt 0:03:09]} Rbd8 {[%emt 0:06:43]} 27. Rdc1 {[%emt 0:00:13]} Bf7 {[%emt 0:01:28]} 28. e5 {[%emt 0:00:47]} Rd7 {[%emt 0:07:20]} 29. Bd5 {[%emt 0:06:02]} fxe5 {[%emt 0:09:12]} 30. Qxe5+ {[%emt 0:03:22]} Qf6 {[%emt 0:01:01]} 31. Bf3 {[%emt 0:02:57]} Ne6 {[%emt 0:04:51]} 32. Nxe6+ {[%emt 0:02:13]} Bxe6 {[%emt 0:00:05]} 33. Qe3 {[%emt 0:03:21]} Bf7 {[%emt 0:02:55]} 34. h5 {[%emt 0:00:44]} gxh5 {[%emt 0:00:38]} 35. Bxh5 {[%emt 0:00:10]} Bg6 {[%emt 0:02:15]} 36. Be2 {[%emt 0:01:32]} Red8 {[%emt 0:00:54]} 37. Rc7 {[%emt 0:00:21]} Qd6 {[%emt 0:02:07]} 38. Qc3+ {[%emt 0:00:36]} Qf6 {[%emt 0:00:06]} 39. Bf3 {[%emt 0:00:45]} Rxc7 {[%emt 0:03:10]} 40. Qxc7 {[%emt 0:01:34]} Rd3 {[%emt 0:00:51]} 41. Re1 {[%emt 0:20:09]} Kf7 {[%emt 0:02:34]} 42. a4 {[%emt 0:03:56]} b5 {[%emt 0:03:24]} 43. axb5 {[%emt 0:01:04]} axb5 {[%emt 0:00:16]} 44. Qc5 {[%emt 0:00:18]} Qd6 {[%emt 0:02:07]} 45. Qxb5 {[%emt 0:00:56]} Rd4 {[%emt 0:00:38]} 46. Qc5 {[%emt 0:02:02]} Rxb4 {[%emt 0:07:07]} 47. Bd5+ {[%emt 0:00:04]} Kf6 {[%emt 0:02:37]} 48. Re6+ {[%emt 0:03:27]} Qxe6 {[%emt 0:00:07]} 49. Bxe6 {[%emt 0:00:07]} Rb1+ {[%emt 0:00:05]} 50. Kh2 {[%emt 0:00:04]} Kxe6 {[%emt 0:00:05]} 51. f4 {[%emt 0:02:54]} Re1 {[%emt 0:04:46]} 52. g4 {[%emt 0:01:15]} Be4 {[%emt 0:01:08]} 53. Kg3 {[%emt 0:02:07]} Kf7 {[%emt 0:01:38]} 54. Qc4+ {[%emt 0:01:00]} Kf8 {[%emt 0:02:12]} 55. Kf2 {[%emt 0:00:11]} 1-0

[Event "BL 2018-19"]
[Site "Berlin"]
[Date "2019.03.01"]
[Round "9.32"]
[White "Lammers, Markus"]
[Black "Schmittdiel, Eckhard"]
[Result "1/2-1/2"]
[ECO "A05"]
[WhiteElo "2298"]
[BlackElo "2436"]
[Annotator "NA"]
[PlyCount "73"]
[EventDate "2018.11.10"]
[EventType "team-tourn"]
[EventCountry "GER"]
[SourceTitle "playchess.com"]
[Source "ChessBase"]
[SourceQuality "1"]
[WhiteTeam "Zugzwang Muenchen"]
[BlackTeam "Augsburg"]
[TimeControl "40/6000+30:3000+30"]

1. Nf3 {[%emt 0:00:00]} Nf6 {[%emt 0:00:18]} 2. c4 {[%emt 0:00:08]} e6 {[%emt 0:00:15]} 3. e3 {[%emt 0:00:44]} g6 {[%emt 0:03:56]} 4. d4 {[%emt 0:00:59]} Bg7 {[%emt 0:00:06]} 5. Nc3 {[%emt 0:00:27]} O-O {[%emt 0:00:17]} 6. Be2 {[%emt 0:03:42]} d5 {[%emt 0:07:48]} 7. b4 {[%emt 0:01:17]} Ne4 {[%emt 0:08:07]} 8. Bb2 {[%emt 0:04:02]} Nxc3 {[%emt 0:11:32]} 9. Bxc3 {[%emt 0:00:58]} dxc4 {[%emt 0:01:34]} 10. Bxc4 {[%emt 0:00:24]} b6 {[%emt 0:00:34]} 11. O-O {[%emt 0:04:50]} Bb7 {[%emt 0:00:11]} 12. Qe2 {[%emt 0:02:15]} Nd7 {[%emt 0:00:34]} 13. Rfd1 {[%emt 0:02:48]} Qe7 {[%emt 0:02:18]} 14. Rac1 {[%emt 0:08:01]} a6 {[%emt 0:07:43]} 15. e4 {[%emt 0:11:24]} Rfd8 {[%emt 0:09:51]} 16. h3 {[%emt 0:14:53]} Bh6 {[%emt 0:20:29]} 17. Rb1 {[%emt 0:02:27]} Nf6 {[%emt 0:02:36]} 18. Bd3 {[%emt 0:01:24]} Nh5 {[%emt 0:02:00]} 19. g3 {[%emt 0:02:02]} Nf6 {[%emt 0:00:34]} 20. Ne5 {[%emt 0:01:45]} Nd7 {[%emt 0:00:49]} 21. Ng4 {[%emt 0:00:29]} Bg7 {[%emt 0:00:09]} 22. a3 {[%emt 0:08:00]} h5 {[%emt 0:08:46]} 23. Ne3 {[%emt 0:00:34]} b5 {[%emt 0:05:13]} 24. Qc2 {[%emt 0:12:24]} Nb6 {[%emt 0:00:29]} 25. Bf1 {[%emt 0:00:18]} Rd7 {[%emt 0:01:46]} 26. Bg2 {[%emt 0:03:39]} Rad8 {[%emt 0:00:21]} 27. Rbc1 {[%emt 0:00:33]} Na4 {[%emt 0:02:03]} 28. Ba1 {[%emt 0:04:12]} Bxd4 {[%emt 0:02:21]} 29. Bxd4 {[%emt 0:00:08]} Rxd4 {[%emt 0:00:04]} 30. Rxd4 {[%emt 0:00:11]} Rxd4 {[%emt 0:00:04]} 31. Qxc7 {[%emt 0:00:20]} Qxc7 {[%emt 0:08:34]} 32. Rxc7 {[%emt 0:00:18]} Bxe4 {[%emt 0:00:03]} 33. Bxe4 {[%emt 0:01:02]} Rxe4 {[%emt 0:00:05]} 34. Ra7 {[%emt 0:01:07]} Rd4 {[%emt 0:00:22]} 35. Rxa6 {[%emt 0:00:11]} Rd3 {[%emt 0:00:05]} 36. Ra5 {[%emt 0:00:29]} Nc3 {[%emt 0:00:29]} 37. Kg2 {[%emt 0:03:05]} 1/2-1/2

[Event "BL 2018-19"]
[Site "Berlin"]
[Date "2019.03.02"]
[Round "10.1"]
[White "Caruana, Fabiano"]
[Black "Shankland, Samuel"]
[Result "1/2-1/2"]
[ECO "B48"]
[WhiteElo "2828"]
[BlackElo "2724"]
[Annotator "RC"]
[PlyCount "96"]
[EventDate "2018.11.10"]
[EventType "team-tourn"]
[EventCountry "GER"]
[SourceTitle "playchess.com"]
[Source "ChessBase"]
[SourceQuality "1"]
[WhiteTeam "Baden-Baden"]
[BlackTeam "Hockenheim"]
[TimeControl "40/6000+30:3000+30"]

1. e4 c5 {[%emt 0:00:00]} 2. Nf3 {[%emt 0:00:00]} e6 {[%emt 0:00:00]} 3. d4 {[%emt 0:00:00]} cxd4 {[%emt 0:00:00]} 4. Nxd4 {[%emt 0:00:01]} Nc6 {[%emt 0:00:00]} 5. Nc3 {[%emt 0:00:07]} Qc7 {[%emt 0:00:00]} 6. Be3 {[%emt 0:00:56]} a6 {[%emt 0:00:01]} 7. Qf3 {[%emt 0:00:09]} Nf6 {[%emt 0:00:16]} 8. O-O-O {[%emt 0:05:11]} Ne5 {[%emt 0:00:06]} 9. Qg3 {[%emt 0:00:11]} b5 10. f4 {[%emt 0:01:43]} Neg4 {[%emt 0:00:11]} 11. Bd2 {[%emt 0:07:20]} b4 {[%emt 0:00:25]} 12. Na4 {[%emt 0:00:13]} h5 {[%emt 0:00:05]} 13. Bd3 {[%emt 0:03:14]} d5 {[%emt 0:00:19]} 14. e5 {[%emt 0:09:46]} Ne4 {[%emt 0:00:08]} 15. Bxe4 {[%emt 0:00:05]} dxe4 {[%emt 0:00:07]} 16. h3 {[%emt 0:03:04]} Nh6 {[%emt 0:01:32]} 17. b3 {[%emt 0:01:08]} Bd7 {[%emt 0:00:34]} 18. Nb2 {[%emt 0:03:00]} Bc5 {[%emt 0:00:20]} 19. Be3 {[%emt 0:07:25]} O-O {[%emt 0:00:21]} 20. Qf2 {[%emt 0:01:06]} a5 {[%emt 0:00:28]} 21. Kb1 {[%emt 0:01:24]} a4 {[%emt 0:25:00]} 22. g4 {[%emt 0:01:44]} Ra6 {[%emt 0:09:16]} 23. Nxe6 {[%emt 0:22:46]} Bxe6 {[%emt 0:02:46]} 24. Bxc5 {[%emt 0:00:04]} axb3 {[%emt 0:13:01]} 25. cxb3 {[%emt 0:00:07]} Rfa8 {[%emt 0:01:33]} 26. Na4 {[%emt 0:00:05]} hxg4 {[%emt 0:03:43]} 27. hxg4 {[%emt 0:00:12]} Bxg4 {[%emt 0:01:37]} 28. Rd6 {[%emt 0:00:59]} Bf3 {[%emt 0:10:54]} 29. Rhxh6 {[%emt 0:13:07]} gxh6 {[%emt 0:01:27]} 30. Nb6 {[%emt 0:08:28]} Rxb6 {[%emt 0:06:50]} 31. Bxb6 {[%emt 0:00:06]} Qc3 {[%emt 0:00:42]} 32. Be3 {[%emt 0:11:27]} Rc8 {[%emt 0:07:26]} 33. f5 Qxe5 {[%emt 0:07:39]} 34. Qg1+ {[%emt 0:08:33]} Qg7 {[%emt 0:01:30]} 35. Qxg7+ {[%emt 0:00:09]} Kxg7 {[%emt 0:00:03]} 36. Bxh6+ {[%emt 0:00:12]} Kh7 {[%emt 0:00:59]} 37. Bd2 {[%emt 0:01:18]} Rc5 {[%emt 0:05:38]} 38. Rh6+ {[%emt 0:01:39]} Kg8 {[%emt 0:00:06]} 39. f6 {[%emt 0:00:41]} e3 {[%emt 0:08:35]} 40. Bxb4 {[%emt 0:01:40]} Be4+ {[%emt 0:04:01]} 41. Kb2 {[%emt 0:50:09]} Rc2+ {[%emt 0:51:36]} 42. Ka3 {[%emt 0:00:07]} e2 {[%emt 0:00:00]} 43. Rh3 {[%emt 0:00:00]} Bd5 {[%emt 0:00:00]} 44. Rh5 {[%emt 0:00:00]} Be6 {[%emt 0:00:00]} 45. Ba5 {[%emt 0:00:00]} Rc1 {[%emt 0:00:00]} 46. Re5 {[%emt 0:00:00]} Rc2 {[%emt 0:00:00]} 47. Rh5 {[%emt 0:00:00]} Rc1 {[%emt 0:00:00]} 48. Re5 {[%emt 0:00:00]} Rc2 {[%emt 0:00:00]} 1/2-1/2

[Event "BL 2018-19"]
[Site "Berlin"]
[Date "2019.03.02"]
[Round "10.4"]
[White "Kempinski, Robert"]
[Black "Hracek, Zbynek"]
[Result "1/2-1/2"]
[ECO "D37"]
[WhiteElo "2574"]
[BlackElo "2569"]
[Annotator "ChessBase"]
[PlyCount "52"]
[EventDate "2018.11.10"]
[EventType "team-tourn"]
[EventCountry "GER"]
[SourceTitle "playchess.com"]
[Source "ChessBase"]
[SourceQuality "1"]
[WhiteTeam "Hamburg SK"]
[BlackTeam "Werder Bremen"]
[TimeControl "40/6000+30:3000+30"]

1. d4 {[%emt 0:00:00]} Nf6 {[%emt 0:00:00]} 2. c4 {[%emt 0:00:00]} e6 {[%emt 0:00:00]} 3. Nc3 {[%emt 0:00:11]} d5 {[%emt 0:01:00]} 4. Nf3 {[%emt 0:02:46]} Nbd7 5. Bg5 {[%emt 0:03:43]} h6 {[%emt 0:03:01]} 6. Bh4 {[%emt 0:00:54]} Be7 {[%emt 0:00:33]} 7. e3 {[%emt 0:02:17]} O-O {[%emt 0:00:33]} 8. Rc1 {[%emt 0:04:15]} c5 {[%emt 0:07:04]} 9. dxc5 {[%emt 0:04:11]} dxc4 {[%emt 0:02:58]} 10. Bxc4 {[%emt 0:06:07]} Nxc5 {[%emt 0:00:29]} 11. O-O {[%emt 0:01:07]} a6 {[%emt 0:11:45]} 12. Qc2 {[%emt 0:12:51]} b5 {[%emt 0:06:43]} 13. Be2 {[%emt 0:03:01]} Bb7 {[%emt 0:12:41]} 14. Rfd1 {[%emt 0:01:35]} Qe8 {[%emt 0:06:09]} 15. Bxf6 {[%emt 0:14:45]} Bxf6 {[%emt 0:05:03]} 16. b4 {[%emt 0:18:03]} Na4 {[%emt 0:04:19]} 17. Nxa4 {[%emt 0:00:22]} bxa4 {[%emt 0:00:02]} 18. Nd2 {[%emt 0:05:43]} Rc8 {[%emt 0:08:42]} 19. Qb1 {[%emt 0:00:29]} Rxc1 {[%emt 0:02:26]} 20. Rxc1 {[%emt 0:00:12]} Qa8 {[%emt 0:03:12]} 21. Bf3 {[%emt 0:02:19]} Bxf3 {[%emt 0:02:06]} 22. Nxf3 {[%emt 0:00:48]} Rb8 {[%emt 0:08:31]} 23. h3 {[%emt 0:03:00]} Qd5 {[%emt 0:03:56]} 24. e4 {[%emt 0:07:58]} Qb5 {[%emt 0:01:53]} 25. a3 {[%emt 0:02:39]} a5 {[%emt 0:02:27]} 26. e5 {[%emt 0:02:26]} Bxe5 {[%emt 0:01:48]} 1/2-1/2

[Event "BL 2018-19"]
[Site "Berlin"]
[Date "2019.03.02"]
[Round "10.7"]
[White "Markgraf, Alexander"]
[Black "Rogozenco, Dorian"]
[Result "0-1"]
[ECO "B33"]
[WhiteElo "2489"]
[BlackElo "2495"]
[Annotator "RC"]
[PlyCount "104"]
[EventDate "2018.11.10"]
[EventType "team-tourn"]
[EventCountry "GER"]
[SourceTitle "playchess.com"]
[Source "ChessBase"]
[SourceQuality "1"]
[WhiteTeam "Werder Bremen"]
[BlackTeam "Hamburg SK"]
[TimeControl "40/6000+30:3000+30"]

1. e4 {[%emt 0:00:00]} c5 {[%emt 0:00:00]} 2. Nf3 {[%emt 0:00:00]} Nc6 {[%emt 0:00:22]} 3. d4 {[%emt 0:00:00]} cxd4 {[%emt 0:00:09]} 4. Nxd4 {[%emt 0:00:03]} Nf6 {[%emt 0:00:06]} 5. Nc3 {[%emt 0:00:09]} e6 {[%emt 0:00:35]} 6. Ndb5 {[%emt 0:00:56]} d6 {[%emt 0:00:09]} 7. Bf4 {[%emt 0:00:14]} e5 {[%emt 0:00:17]} 8. Bg5 {[%emt 0:00:18]} a6 {[%emt 0:00:25]} 9. Na3 {[%emt 0:00:16]} b5 {[%emt 0:00:13]} 10. Bxf6 gxf6 {[%emt 0:00:08]} 11. Nd5 {[%emt 0:00:58]} f5 {[%emt 0:02:16]} 12. c3 {[%emt 0:03:05]} Bg7 {[%emt 0:00:38]} 13. Bd3 {[%emt 0:00:14]} Be6 {[%emt 0:00:50]} 14. Nxb5 {[%emt 0:00:55]} axb5 {[%emt 0:00:18]} 15. Bxb5 {[%emt 0:00:05]} Bd7 {[%emt 0:00:33]} 16. exf5 {[%emt 0:00:07]} Nb8 {[%emt 0:02:46]} 17. a4 {[%emt 0:03:11]} Bxb5 {[%emt 0:01:51]} 18. axb5 {[%emt 0:00:05]} Rxa1 {[%emt 0:00:11]} 19. Qxa1 {[%emt 0:00:04]} O-O {[%emt 0:00:43]} 20. O-O {[%emt 0:06:43]} Nd7 {[%emt 0:01:07]} 21. Qa7 {[%emt 0:04:13]} e4 {[%emt 0:00:30]} 22. b6 {[%emt 0:32:47]} Be5 {[%emt 0:07:09]} 23. Qc7 {[%emt 0:11:17]} Kg7 {[%emt 0:25:19]} 24. Ra1 {[%emt 0:07:01]} Nf6 {[%emt 0:07:45]} 25. Ne7 {[%emt 0:09:30]} Qd7 {[%emt 0:02:16]} 26. Ra5 {[%emt 0:15:11]} Re8 {[%emt 0:10:43]} 27. Qxd7 {[%emt 0:01:54]} Nxd7 {[%emt 0:00:08]} 28. Nd5 {[%emt 0:00:08]} Rb8 {[%emt 0:12:51]} 29. Rb5 {[%emt 0:01:25]} Rb7 {[%emt 0:11:10]} 30. g3 {[%emt 0:00:55]} Bf6 {[%emt 0:12:55]} 31. b4 {[%emt 0:02:41]} Be5 {[%emt 0:02:45]} 32. c4 {[%emt 0:02:19]} Bd4 {[%emt 0:00:02]} 33. Kg2 {[%emt 0:00:35]} Kf8 {[%emt 0:04:10]} 34. h4 {[%emt 0:01:50]} Ke8 {[%emt 0:00:54]} 35. f3 {[%emt 0:02:19]} e3 {[%emt 0:01:16]} 36. Kf1 {[%emt 0:00:01]} Nxb6 {[%emt 0:03:37]} 37. c5 {[%emt 0:01:22]} Nxd5 {[%emt 0:00:38]} 38. Rxb7 {[%emt 0:00:04]} dxc5 {[%emt 0:00:05]} 39. bxc5 {[%emt 0:00:09]} Bxc5 {[%emt 0:00:08]} 40. Rb5 {[%emt 0:01:36]} e2+ {[%emt 0:01:14]} 41. Ke1 {[%emt 0:50:18]} Bb4+ {[%emt 0:50:41]} 42. Rxb4 {[%emt 0:00:17]} Nxb4 {[%emt 0:00:00]} 43. Kxe2 {[%emt 0:00:00]} Ke7 {[%emt 0:00:00]} 44. Ke3 {[%emt 0:00:00]} Kf6 {[%emt 0:00:00]} 45. Ke4 {[%emt 0:00:00]} Na6 {[%emt 0:00:00]} 46. g4 {[%emt 0:00:00]} Nc5+ {[%emt 0:00:00]} 47. Kf4 {[%emt 0:00:00]} h5 {[%emt 0:00:00]} 48. g5+ {[%emt 0:00:00]} Ke7 {[%emt 0:00:00]} 49. Ke3 {[%emt 0:00:00]} f6 {[%emt 0:00:00]} 50. Kf4 {[%emt 0:00:00]} Nb7 {[%emt 0:00:00]} 51. Ke4 {[%emt 0:00:00]} Nd6+ {[%emt 0:00:00]} 52. Kf4 {[%emt 0:00:00]} Kf7 {[%emt 0:00:00]} 0-1